Cogmind - Beta 11.1 @@@ ROGUE MODE // 2022.09.07 @ 16:17:19 Player: Smie Result: Destroyed by as-01732 with Assembled P-sword Performance ------------- Evolutions (3) 1500 Regions Visited (13) 2600 Robots Destroyed (126) 630 Value Destroyed (3129) 3129 Prototype IDs (28) 560 Alien Tech Used (0) 0 Bonus (2716) 2716 TOTAL SCORE: 11135 Bonus ------- High Alert Combat Kills 23 Follower Combat Kills 605 Aligned with FarCom 300 Destroyed Z-Imprinter 1000 Triggered Deep Caves Wall 500 Exposed GOLEM Chamber 500 Friendly Fire -212 Cogmind --------- Core Integrity 0/700 Matter 32/300 Energy 300/300 System Corruption 3% Temperature Cool (0) Movement Core (100) Ox1 Location -7/Deep Caves Parts ------- > --- POWER (1) -------- (None) > --- PROPULSION (4) --- (None) > --- UTILITY (6) ------ Large Battery > --- WEAPON (2) ------- CR-A16's Pointy Stick > --- INVENTORY (5) ---- Light Nuclear Core Experimental Targeting Computer Hacking Drone Bay Enhanced Autogun Peak State ------------ > --- POWER ------------ Heavy Ion Engine > --- PROPULSION ------- Improved Treads Improved Treads Improved Treads Improved Medium Treads > --- UTILITY ---------- High-capacity Storage Unit Improved Signal Interpreter Advanced Targeting Computer Cloak of Protection Medium Armor Plating Reflective Plating > --- WEAPON ----------- Enhanced Autogun Powered Hammer > --- INVENTORY -------- Light Deuterium Engine Light Nuclear Core Improved Treads Improved Treads Improved Treads Cooling System Large Battery Large Matter Pod Experimental Targeting Computer Light EM Pulse Cannon Light EM Pulse Cannon Improved EM Pulse Cannon Heavy Assault Rifle Enhanced Autogun Flak Gun Mini Grenade Launcher Mini Grenade Launcher Mini Grenade Launcher Mini Grenade Launcher CR-A16's Pointy Stick [Rating: 47] Favorites ----------- Power Heavy Ion Engine Engine Heavy Ion Engine Propulsion Improved Treads Treads Improved Treads Wheel Compact Wheel Utility High-capacity Storage Unit Device Cooling System Storage High-capacity Storage Unit Processor Advanced Targeting Computer Protection Medium Armor Plating Weapon Enhanced Autogun Energy Gun Medium Laser Energy Cannon Light EM Pulse Cannon Ballistic Gun Enhanced Autogun Ballistic Cannon Improved Light Cannon Launcher Mini Grenade Launcher Impact Weapon Powered Hammer Slashing Weapon Katana Piercing Weapon CR-A16's Pointy Stick Build | -11 -10 -10 -9 -9 -9 -8 -8 -8 -7 -7 -7 -7 -7 ------- Run | Scr Mat Min Mat Min Exi Min Mat Sto Fac Low Low Zio Dee Slots Evolved 6 | . . . 2 . . . 2 . 2 . . . . Power . | . . . . . . . . . . . . . . Propulsion 2 | . . . 1 . . . 1 . . . . . . Utility 4 | . . . 1 . . . 1 . 2 . . . . Weapon . | . . . . . . . . . . . . . . Parts Attached 121 | 6 17 1 14 1 2 2 22 23 8 1 8 5 11 Power 8 | 1 1 . 2 . 2 . 1 1 . . . . . Engine 8 | 1 1 . 2 . 2 . 1 1 . . . . . Core . | . . . . . . . . . . . . . . Reactor . | . . . . . . . . . . . . . . Propulsion 25 | 2 4 1 3 . . . 4 8 . . 2 . 1 Treads 18 | . . . 3 . . . 4 8 . . 2 . 1 Leg . | . . . . . . . . . . . . . . Wheel 7 | 2 4 1 . . . . . . . . . . . Hover . | . . . . . . . . . . . . . . Flight . | . . . . . . . . . . . . . . Utility 19 | 1 2 . 1 . . . 3 3 5 . 1 2 1 Device 2 | . . . 1 . . . . . . . . 1 . Storage 4 | 1 1 . . . . . . . 1 . . . 1 Processor 4 | . 1 . . . . . 1 2 . . . . . Hackware . | . . . . . . . . . . . . . . Protection 9 | . . . . . . . 2 1 4 . 1 1 . Artifact . | . . . . . . . . . . . . . . Weapon 69 | 2 10 . 8 1 . 2 14 11 3 1 5 3 9 Energy Gun 7 | . 4 . 3 . . . . . . . . . . Energy Cannon 7 | . . . 2 . . 1 1 1 . . . . 2 Ballistic Gun 24 | 2 4 . 1 1 . 1 4 5 2 . 2 1 1 Ballistic Cannon 4 | . . . 1 . . . 2 1 . . . . . Launcher 13 | . 1 . 1 . . . 2 1 1 1 1 2 3 Special Weapon . | . . . . . . . . . . . . . . Impact Weapon 11 | . 1 . . . . . 3 3 . . 2 . 2 Slashing Weapon 2 | . . . . . . . 2 . . . . . . Piercing Weapon 1 | . . . . . . . . . . . . . 1 Special Melee Weapon . | . . . . . . . . . . . . . . Unidentified Prototypes 5 | . . . . . . . 3 2 . . . . . Corrupted Parts 3 | . . . . . 1 . . . . . 2 . . System Corruption 27 | . . . . . 1 . . . . . 26 . . Parts Lost 17 | . 1 . . . . . . 2 1 . 1 . 12 Power 1 | . . . . . . . . . . . . . 1 Propulsion 7 | . . . . . . . . 2 . . . . 5 Utility 6 | . . . . . . . . . 1 . 1 . 4 Weapon 3 | . 1 . . . . . . . . . . . 2 Highest Loss Streak 10 | . 1 . . . . . . 1 1 . 1 . 10 To Critical Strikes . | . . . . . . . . . . . . . . Average Slot Usage (%) 97 | . 90 100 99 100 100 100 99 98 90 100 99 99 93 Engine 9 | . 14 14 11 11 11 11 9 9 7 7 7 7 6 Treads 26 | . . . 32 33 33 33 36 35 30 30 30 30 27 Wheel 4 | . 27 28 . . . . . . . . . . . Device 4 | . . . 10 11 11 11 7 . . . . 4 6 Storage 9 | . 14 14 11 11 11 11 9 9 7 7 7 7 11 Processor 13 | . 6 14 11 11 11 11 10 18 15 15 15 15 14 Protection 8 | . . . . . . . 9 9 13 23 22 18 8 Energy Gun 3 | . 11 28 15 . . . . . . . . . . Ballistic Gun 8 | . 15 . 2 11 11 10 5 12 10 14 9 6 . Ballistic Cannon 2 | . . . 2 11 11 11 7 . . . . . . Impact Weapon 2 | . . . . . . . 2 3 2 . 2 7 1 Naked Turns . | . . . . . . . . . . . . . . Heaviest Build 74 | 13 49 49 53 53 53 53 61 63 68 68 68 73 74 Greatest Support 99 | 20 32 32 60 60 60 60 80 92 92 92 99 99 99 Greatest Overweight (x) 2 | . 2 1 . . . . . 1 . . . . 1 Average Overweight (x) . | . 1 1 . . . . . . . . . . . Largest Inventory Capacity 20 | 8 20 20 20 20 20 20 20 20 20 20 20 20 20 Average Capacity 19 | 7 19 20 20 20 20 20 20 20 20 20 20 20 19 Most Carried 20 | 7 20 20 20 20 20 20 20 20 20 20 20 20 20 Average Carried 19 | 3 15 20 19 20 19 20 19 19 19 20 19 19 18 Final Capacity 20 | 8 20 20 20 20 20 20 20 20 20 20 20 20 5 Final Carried 20 | 7 20 20 20 20 20 20 20 20 20 20 20 20 4 Class Distribution -------------------- 80% | Mutant 11% | Scavenger-Mutant 7% | Commander-Mutant Dominant Class ---------------- Mutant | -10/Materials Mutant | -10/Mines Mutant | -9/Materials Mutant | -9/Mines Mutant | -9/Exiles Mutant | -8/Mines Mutant | -8/Materials Scavenger-Mutant | -8/Storage Mutant | -7/Factory Mutant | -7/Lower Caves Mutant | -7/Lower Caves Mutant | -7/Zion Mutant | -7/Deep Caves Resources | -11 -10 -10 -9 -9 -9 -8 -8 -8 -7 -7 -7 -7 -7 ----------- Run | Scr Mat Min Mat Min Exi Min Mat Sto Fac Low Low Zio Dee Matter Collected 2860 | 268 415 113 165 65 . 94 442 603 185 116 164 73 157 Remotely . | . . . . . . . . . . . . . . Salvage Created 4406 | 87 763 277 457 55 . 77 522 1088 322 206 174 . 378 Parts 245 | 3 45 15 34 11 . 8 23 53 21 14 13 . 5 Haulers Intercepted 10 | . 2 . 1 . . . 1 5 1 . . . . Recyclers Shooed 11 | . 3 . . . . 3 1 3 1 . . . . Parts Field Recycled . | . . . . . . . . . . . . . . Retrieved Matter . | . . . . . . . . . . . . . . Parts Self-Destructed 27 | . . . . . . . . . . 11 14 2 . Prevented 3 | . . . . . . . . . . . 3 . . Kills | -11 -10 -10 -9 -9 -9 -8 -8 -8 -7 -7 -7 -7 -7 ------- Run | Scr Mat Min Mat Min Exi Min Mat Sto Fac Low Low Zio Dee Combat Hostiles Destroyed 115 | . 8 3 11 4 . 4 8 13 5 5 7 . 47 Melee 2 | . . . . . . . . . 1 . . . 1 Guns 32 | . 7 3 3 4 . 3 1 5 2 1 3 . . Cannons 11 | . . . 2 . . 1 5 3 . . . . . AOE 66 | . 1 . 6 . . . 2 3 2 4 3 . 45 Classes Destroyed 19 | 1 6 . 2 1 . 1 1 1 . 1 1 . 4 Worker 15 | . 1 2 3 . . 1 1 2 5 . . . . Builder 5 | . 1 . . . . . 2 . 2 . . . . Tunneler 2 | . . . . 1 . . 1 . . . . . . Hauler 10 | . 2 . 1 . . . 1 5 1 . . . . Recycler 12 | 1 5 2 . . . . 1 3 . . . . . Mechanic 1 | . . . . . . . . 1 . . . . . Operator 1 | . . . . . . . 1 . . . . . . Watcher 6 | . 2 . 2 . . . . 2 . . . . . Swarmer 24 | . 6 2 3 4 . 3 . . . . 6 . . Grunt 27 | . 2 1 5 . . . 2 7 6 4 . . . Brawler 2 | . . . 1 . . . 1 . . . . . . Sentry 10 | . . . 2 . . . 4 4 . . . . . Hunter 4 | . . . . . . 1 1 2 . . . . . Behemoth 1 | . . . . . . . . . . 1 . . . Z-Light 2 | . . . . . . . . . . . . . 2 Assembler 1 | . . . . . . . . . . . . . 1 Assembled 43 | . . . . . . . . . . . . . 43 Golem 1 | . . . . . . . . . . . . . 1 Mutant 1 | . . . . . . . . . . . 1 . . Best Kill Streak 38 | 1 5 4 10 3 . 3 5 6 9 4 4 . 38 Combat Bots Only 37 | . 4 2 7 2 . 3 4 6 3 4 4 . 37 Max Kills in Single Turn 13 | 1 1 1 6 2 . 1 2 2 7 2 3 . 13 Gunslinging . | . . . . . . . . . . . . . . Exploded 13 | . 1 . 3 . . . 1 2 2 2 3 . 13 Melee 1 | . . . . . . . . . 1 . . . 1 Uniques/NPCs Destroyed 1 | . . . . . . . . . . . . . 1 Z-Imprinter (-7/Deep Caves) Combat | -11 -10 -10 -9 -9 -9 -8 -8 -8 -7 -7 -7 -7 -7 -------- Run | Scr Mat Min Mat Min Exi Min Mat Sto Fac Low Low Zio Dee Damage Taken 5144 | . 360 41 190 56 . 50 368 787 317 635 309 . 2031 Core 995 | . 95 9 23 . . . 66 61 47 36 . . 658 Absorbed by Shields . | . . . . . . . . . . . . . . Core Remaining (%) 82 | 100 . 58 . . . 94 . 76 . . . . . Volleys Fired 279 | 2 59 16 30 7 . 13 31 61 12 13 10 . 25 Largest 2 | 2 2 2 2 1 . 2 2 2 2 2 2 . 2 Hottest 125 | 40 60 100 112 28 . 108 108 69 55 50 55 . 125 Shots Fired 464 | 4 105 32 58 7 . 15 47 91 21 22 20 . 42 Gun 336 | 4 103 32 49 7 . 4 20 61 19 18 19 . . Cannon 76 | . . . 7 . . 11 23 27 . . . . 8 Launcher 52 | . 2 . 2 . . . 4 3 2 4 1 . 34 Special . | . . . . . . . . . . . . . . Kinetic 308 | 4 93 . 7 7 . 13 40 88 19 18 19 . . Thermal 88 | . 10 32 46 . . . . . . . . . . Explosive 52 | . 2 . 2 . . . 4 3 2 4 1 . 34 Electromagnetic 16 | . . . 3 . . 2 3 . . . . . 8 Robot Hit Streak 12 | 2 9 11 7 6 . 5 10 12 6 7 3 . 9 Robot Miss Streak 9 | 1 4 2 4 9 . 5 3 3 4 2 2 . 3 Penetration Max . | . . . . . . . . . . . . . . Secondary Targets 2 | . . . . . . . . . 1 . 1 . . Max Gunslinging Chain 1 | . . . . . . . . . 1 . 1 . . Shots Hit Robots 301 | 3 58 23 35 6 . 12 30 67 15 17 13 . 22 Core Hits 273 | 2 31 10 21 9 . 8 19 32 20 14 6 . 101 Critical Kills 1 | . . . . . . . . 1 . . . . . Critical Parts Destroyed 3 | . 1 . . . . . 1 1 . . . . . Critical Strikes 16 | . 1 2 6 . . 1 2 4 . . . . . Burn 8 | . . 2 6 . . . . . . . . . . Destroy 2 | . 1 . . . . . . 1 . . . . . Blast 4 | . . . . . . 1 1 2 . . . . . Smash 2 | . . . . . . . 1 1 . . . . . Melee Attacks 80 | . 4 . . . . . 12 23 4 . 4 21 12 Impact 73 | . 4 . . . . . 7 23 4 . 4 21 10 Slashing 5 | . . . . . . . 5 . . . . . . Piercing 2 | . . . . . . . . . . . . . 2 Sneak Attacks 9 | . . . . . . . 2 4 3 . . . . Combat Hostiles 1 | . . . . . . . . . 1 . . . . Follow-up Attacks . | . . . . . . . . . . . . . . Damage Inflicted 11489 | 30 719 291 1001 96 . 242 1068 1902 1029 724 476 . 3911 Guns 2964 | 30 651 291 394 73 . 44 207 628 201 265 180 . . Cannons 1066 | . . . 81 . . 178 287 375 . . . . 145 Explosions 6217 | . 68 . 526 . . . 349 322 623 459 213 . 3657 Melee 1151 | . . . . . . . 207 568 184 . 83 . 109 Ramming 91 | . . . . 23 . 20 18 9 21 . . . . Kinetic 2991 | 30 595 . 59 73 . 164 421 1003 201 265 180 . . Thermal 781 | . 56 291 378 . . . 56 . . . . . . Explosive 6161 | . 68 . 526 . . . 293 322 623 459 213 . 3657 Electromagnetic 314 | . . . 38 . . 58 73 . . . . . 145 Impact 1061 | . . . . . . . 148 568 184 . 83 . 78 Slashing 59 | . . . . . . . 59 . . . . . . Piercing 31 | . . . . . . . . . . . . . 31 Highest Corruption 26 | . . . . . 1 1 2 4 . . 26 26 3 Average Corruption 5 | . . . . . 1 1 2 2 . . 16 26 3 Corruption Purged . | . . . . . . . . . . . . . . Corruption Blocked . | . . . . . . . . . . . . . . Effects 58 | . . . . . . 6 5 24 . . 20 3 . Message Errors 12 | . . . . . . 4 1 4 . . 2 1 . Matter Fused 14 | . . . . . . 1 2 5 . . 5 1 . Heat Flow Errors 10 | . . . . . . . 1 6 . . 3 . . Energy Discharges 9 | . . . . . . 1 . 5 . . 3 . . Data Loss (minor) 9 | . . . . . . . . 2 . . 6 1 . Data Loss (major) 2 | . . . . . . . . 1 . . 1 . . Misfires 1 | . . . . . . . 1 . . . . . . Weapon Failures 1 | . . . . . . . . 1 . . . . . Overload Shots . | . . . . . . . . . . . . . . Overflow Damage 632 | . 2 . 4 . . . 178 290 30 . 63 . 65 Projectiles . | . . . . . . . . . . . . . . Explosions 158 | . 2 . 4 . . . 41 . 13 . 33 . 65 Melee 474 | . . . . . . . 137 290 17 . 30 . . Knockbacks 7 | . . . . . . 1 3 1 2 . . . . Impact 3 | . . . . . . . 2 . 1 . . . . Kinetic 3 | . . . . . . 1 1 1 . . . . . Secondary 1 | . . . . . . . . . 1 . . . . Self-Inflicted Damage 263 | . 50 . . . . . 36 . 128 . . . 49 Shots 11 | . 2 . . . . . 2 . 5 . . . 2 Rammed 5 | . . . . 1 . . 2 . 2 . . . . Targets Rammed 10 | . . . . 2 . 1 3 2 2 . . . . Kicked . | . . . . . . . . . . . . . . Crushed 5 | . . . . 1 . 1 1 2 . . . . . Highest Temperature 273 | . 40 136 30 . . . 145 273 39 142 249 . 222 Average Temperature 56 | . 16 49 13 . . . 35 58 12 62 77 . 83 Received Heat Transfer 1094 | . 72 . 69 . . . 99 288 81 183 60 . 242 Effects 3 | . . . . . . . . . . . . . 3 Interference 3 | . . . . . . . . . . . . . 3 Siege Activations . | . . . . . . . . . . . . . . Robots Corrupted 1 | . . . . . . . . . . . . . 1 Combat Hostiles 1 | . . . . . . . . . . . . . 1 Parts Fried 10 | . . . . . . . 2 6 . . 2 . . Impact Corruptions 13 | . . . . . . . 5 6 1 . 1 . . Robots Melted . | . . . . . . . . . . . . . . Combat Hostiles . | . . . . . . . . . . . . . . Parts Melted 9 | . . 4 5 . . . . . . . . . . Heat Transferred 2728 | . 125 999 1554 . . . 50 . . . . . . Parts Sabotaged . | . . . . . . . . . . . . . . Parts Stolen . | . . . . . . . . . . . . . . Parts Stripped . | . . . . . . . . . . . . . . Power Chain Reactions 1 | . . . . . . . 1 . . . . . . Missiles Intercepted . | . . . . . . . . . . . . . . Alert | -11 -10 -10 -9 -9 -9 -8 -8 -8 -7 -7 -7 -7 -7 ------- Run | Scr Mat Min Mat Min Exi Min Mat Sto Fac Low Low Zio Dee Peak Influence 544 | 5 246 103 346 240 . 100 318 405 544 . . . . Initial 133 | . 3 1 14 100 . . 1 133 82 . . . . Average 137 | 1 93 28 197 144 . 46 126 185 282 . . . . Maximum Alert Level 2 | . 1 . 1 1 . . 1 2 2 . . . . Low Security (%) 72 | 100 84 100 49 73 . 100 76 54 46 . . . . Level 1 25 | . 15 . 50 26 . . 23 43 33 . . . . Level 2 2 | . . . . . . . . 1 19 . . . . Level 3 . | . . . . . . . . . . . . . . Level 4 . | . . . . . . . . . . . . . . Level 5 . | . . . . . . . . . . . . . . High Security . | . . . . . . . . . . . . . . Max Security . | . . . . . . . . . . . . . . Squads Dispatched 16 | . 1 . 3 1 . . 3 3 5 . . . . Investigation 5 | . 1 . 2 1 . . . 1 . . . . . Extermination 1 | . . . . . . . . . 1 . . . . Reinforcement 10 | . . . 1 . . . 3 2 4 . . . . Assault . | . . . . . . . . . . . . . . Garrison . | . . . . . . . . . . . . . . Intercept . | . . . . . . . . . . . . . . Searches Triggered . | . . . . . . . . . . . . . . Construction Impeded 2 | . . . . . . . 1 . 1 . . . . Haulers Reinforced 2 | . . . . . . . . . 2 . . . . Active Scanning Responses . | . . . . . . . . . . . . . . Cargo Convoy Interrupts . | . . . . . . . . . . . . . . Stealth | -11 -10 -10 -9 -9 -9 -8 -8 -8 -7 -7 -7 -7 -7 --------- Run | Scr Mat Min Mat Min Exi Min Mat Sto Fac Low Low Zio Dee Distress Signals 8 | . . . . . . . 2 3 3 . . . . Communications Jammed . | . . . . . . . . . . . . . . Distress Signals . | . . . . . . . . . . . . . . Times Spotted 166 | . 15 5 19 6 . 3 19 19 12 5 8 . 55 Peak Tracking Total 38 | . 6 3 4 4 . 2 5 5 5 4 4 . 38 Tactical Retreats 2 | . 1 . . 1 . . . . . . . . . Traps | -11 -10 -10 -9 -9 -9 -8 -8 -8 -7 -7 -7 -7 -7 ------- Run | Scr Mat Min Mat Min Exi Min Mat Sto Fac Low Low Zio Dee Traps Triggered 7 | . 3 . 1 . . . . 3 . . . . . Indirectly . | . . . . . . . . . . . . . . Trap Hack Attempts . | . . . . . . . . . . . . . . Triggered . | . . . . . . . . . . . . . . Disarmed . | . . . . . . . . . . . . . . Reprogrammed . | . . . . . . . . . . . . . . Reused . | . . . . . . . . . . . . . . Traps Extracted . | . . . . . . . . . . . . . . Installed . | . . . . . . . . . . . . . . Triggered . | . . . . . . . . . . . . . . Machines | -11 -10 -10 -9 -9 -9 -8 -8 -8 -7 -7 -7 -7 -7 ---------- Run | Scr Mat Min Mat Min Exi Min Mat Sto Fac Low Low Zio Dee Machines Disabled 15 | . . . 1 . . . 2 4 4 . 1 . 3 Max in Single Turn 4 | . . . 1 . . . 1 1 4 . 1 . 1 Garrison Access 1 | . . . . . . . . 1 . . . . . Machines Sabotaged . | . . . . . . . . . . . . . . Garrisons Compromised 1 | . . . . . . . . . 1 . . . . Overloaded Fab Kills . | . . . . . . . . . . . . . . Hacking | -11 -10 -10 -9 -9 -9 -8 -8 -8 -7 -7 -7 -7 -7 --------- Run | Scr Mat Min Mat Min Exi Min Mat Sto Fac Low Low Zio Dee Machines Accessed 26 | . 8 . 1 1 2 . 3 10 1 . . . . Terminals 20 | . 8 . 1 . . . 3 8 . . . . . Fabricators 1 | . . . . . . . . . 1 . . . . Repair Stations . | . . . . . . . . . . . . . . Recycling Units 1 | . . . . . . . . 1 . . . . . Scanalyzers . | . . . . . . . . . . . . . . Garrison Access 1 | . . . . . . . . 1 . . . . . Total Hacks 62 | . 21 . 7 1 5 . 9 18 1 . . . . Successful 33 | . 9 . 3 1 5 . 5 9 1 . . . . Failed 29 | . 12 . 4 . . . 4 9 . . . . . Catastrophic 9 | . 3 . 2 . . . 1 3 . . . . . Database Lockouts . | . . . . . . . . . . . . . . Manual 31 | . 13 . 5 . 1 . 7 5 . . . . . Terminals 52 | . 21 . 7 . . . 9 15 . . . . . Fabricators 1 | . . . . . . . . . 1 . . . . Repair Stations . | . . . . . . . . . . . . . . Recycling Units 2 | . . . . . . . . 2 . . . . . Scanalyzers . | . . . . . . . . . . . . . . Garrison Access 1 | . . . . . . . . 1 . . . . . Terminal Hacks 23 | . 7 . 2 1 5 . 2 6 . . . . . Record 4 | . . . . . 4 . . . . . . . . Open Door 5 | . . . . 1 . . . 4 . . . . . Branch Access Points 1 | . . . . . . . 1 . . . . . . Unreport Threat 3 | . 1 . . . . . . 2 . . . . . Locate Traps 1 | . . . 1 . . . . . . . . . . Registered Components 1 | . 1 . . . . . . . . . . . . Zone Layout 7 | . 5 . 1 . . . 1 . . . . . . EX-Prototype ID Bank 1 | . . . . . 1 . . . . . . . . Fabricator Hacks 1 | . . . . . . . . . 1 . . . . Network Status 1 | . . . . . . . . . 1 . . . . Repair Station Hacks . | . . . . . . . . . . . . . . Recycling Unit Hacks 1 | . . . . . . . . 1 . . . . . Retrieve Components 1 | . . . . . . . . 1 . . . . . Scanalyzer . | . . . . . . . . . . . . . . Garrison Access Hacks 1 | . . . . . . . . 1 . . . . . Seal Access 1 | . . . . . . . . 1 . . . . . Unauthorized Hacks 7 | . 2 . 1 . . . 3 1 . . . . . Terminals 7 | . 2 . 1 . . . 3 1 . . . . . Assimilate 1 | . . . . . . . 1 . . . . . . Botnet 6 | . 2 . 1 . . . 2 1 . . . . . Fabricators . | . . . . . . . . . . . . . . Repair Stations . | . . . . . . . . . . . . . . Recycling Units . | . . . . . . . . . . . . . . Scanalyzers . | . . . . . . . . . . . . . . Garrison Access . | . . . . . . . . . . . . . . Data Cores Recovered 1 | . . . . . . . 1 . . . . . . Used . | . . . . . . . . . . . . . . Hacking Detections 17 | . 7 . 1 . . . 2 6 1 . . . . Full Trace Events 2 | . . . 1 . . . . 1 . . . . . Feedback Events . | . . . . . . . . . . . . . . Feedback Blocked . | . . . . . . . . . . . . . . Robot Schematics Acquired 3 | . . . . . . . . . . . . 3 . Robots Built . | . . . . . . . . . . . . . . Authchips . | . . . . . . . . . . . . . . Time . | . . . . . . . . . . . . . . Total Robot Build Rating . | . . . . . . . . . . . . . . Part Schematics Acquired 15 | . . . . . . . . . . . . 15 . Parts Built . | . . . . . . . . . . . . . . Authchips . | . . . . . . . . . . . . . . Time . | . . . . . . . . . . . . . . Total Part Build Rating . | . . . . . . . . . . . . . . Parts Repaired . | . . . . . . . . . . . . . . Time . | . . . . . . . . . . . . . . Parts Recycled . | . . . . . . . . . . . . . . Recycled Matter . | . . . . . . . . . . . . . . Retrieved Matter . | . . . . . . . . . . . . . . Retrieved Components 10 | . . . . . . . . 10 . . . . . Parts Scanalyzed . | . . . . . . . . . . . . . . Part Schematics Acquired . | . . . . . . . . . . . . . . Parts Damaged . | . . . . . . . . . . . . . . Bothacking | -11 -10 -10 -9 -9 -9 -8 -8 -8 -7 -7 -7 -7 -7 ------------ Run | Scr Mat Min Mat Min Exi Min Mat Sto Fac Low Low Zio Dee Used RIF Installer . | . . . . . . . . . . . . . . Robots Hacked . | . . . . . . . . . . . . . . Non-combat . | . . . . . . . . . . . . . . Combat . | . . . . . . . . . . . . . . Robot Hacks Applied . | . . . . . . . . . . . . . . Relay Couplers Released . | . . . . . . . . . . . . . . Fabnet Peak Effective % . | . . . . . . . . . . . . . . Robots Rewired . | . . . . . . . . . . . . . . Allies Hacked 1 | . . . . . . . . . 1 . . . . Hacks Repelled . | . . . . . . . . . . . . . . Allies | -11 -10 -10 -9 -9 -9 -8 -8 -8 -7 -7 -7 -7 -7 -------- Run | Scr Mat Min Mat Min Exi Min Mat Sto Fac Low Low Zio Dee Total Allies 17 | . . 4 . . . . . 13 . . . . . Largest Group 10 | . . 4 2 . . . . 10 8 1 1 . . Highest-Rated Group 186 | . . 71 32 . . . . 186 186 29 29 . . Highest-Rated Ally 31 | . . 31 16 . . . . 31 31 29 29 . . Total Orders . | . . . . . . . . . . . . . . Ally Attacks 162 | . . 10 16 . . . . 43 81 10 2 . . Total Damage 2384 | . . 119 197 . . . . 469 1443 156 . . . Kills 22 | . . 2 3 . . . . 6 11 . . . . Allies Corrupted 1 | . . . . . . . . 1 . . . . . Allies Melted . | . . . . . . . . . . . . . . Intel | -11 -10 -10 -9 -9 -9 -8 -8 -8 -7 -7 -7 -7 -7 ------- Run | Scr Mat Min Mat Min Exi Min Mat Sto Fac Low Low Zio Dee Robot Analysis Total . | . . . . . . . . . . . . . . Derelict Logs Recovered 5 | . . 2 . . . . . . . 1 1 1 . Drone Launches . | . . . . . . . . . . . . . . Drone Recoveries . | . . . . . . . . . . . . . . Exploration | -11 -10 -10 -9 -9 -9 -8 -8 -8 -7 -7 -7 -7 -7 ------------- Run | Scr Mat Min Mat Min Exi Min Mat Sto Fac Low Low Zio Dee Turns Passed 9231 | 70 913 580 633 359 365 693 680 1271 572 486 600 1376 633 Spaces Moved 5293 | 61 596 455 316 213 226 400 332 622 302 286 344 817 323 Core 14 | 3 . . . . . . . . . . . . 11 Treads 4170 | . . . 316 213 226 400 332 622 302 286 344 817 312 Legs . | . . . . . . . . . . . . . . Wheels 1109 | 58 596 455 . . . . . . . . . . . Hover . | . . . . . . . . . . . . . . Flight . | . . . . . . . . . . . . . . Fastest Speed 50 | 50 80 115 160 160 160 160 160 160 160 160 160 160 100 Average Speed 149 | 78 113 115 160 160 160 160 160 161 160 160 160 160 157 Slowest Speed 240 | 80 130 115 160 160 160 160 160 240 160 160 160 160 160 Overloaded Moves . | . . . . . . . . . . . . . . Propulsion Burnouts . | . . . . . . . . . . . . . . Robots Hopped . | . . . . . . . . . . . . . . Cave-ins Triggered . | . . . . . . . . . . . . . . Exploration Rate (%) 58 | 4 95 91 36 40 63 82 49 81 15 55 51 85 66 Regions Visited 13 Branch Regions 9 Pre-discovered Areas 2 | . . . . 1 1 . . . . . . . . Known Exits Taken 6 | . . . . . . . 1 1 1 1 1 1 . Unknown Exits Taken 7 | 1 1 1 1 1 1 1 . . . . . . . Scrap Searched 7 | . . 1 . 1 . . . . . 1 1 3 . Spaces Dug 59 | . 11 . . . . . 9 8 1 . . 3 27 Terrain Destroyed 249 | . 22 . 13 . . . 44 41 10 12 10 3 94 Melee 24 | . 2 . . . . . 9 8 1 . . 3 1 Projectile 1 | . . . . . . . 1 . . . . . . AOE 224 | . 20 . 13 . . . 34 33 9 12 10 . 93 Terrain Rammed . | . . . . . . . . . . . . . . Walls Destroyed . | . . . . . . . . . . . . . . Machines Disabled . | . . . . . . . . . . . . . . Actions | -11 -10 -10 -9 -9 -9 -8 -8 -8 -7 -7 -7 -7 -7 --------- Run | Scr Mat Min Mat Min Exi Min Mat Sto Fac Low Low Zio Dee Total 6033 | 76 734 480 385 227 229 437 419 776 367 299 374 849 381 Wait 129 | 1 22 8 7 . . 22 2 21 35 . 3 1 7 Move 5280 | 60 595 454 315 212 225 399 331 621 301 285 343 816 323 Hop . | . . . . . . . . . . . . . . Pick Up 63 | 7 23 . 9 2 1 . 6 8 2 . 2 2 1 Fast Attach 26 | 6 7 . 2 . . . 3 3 2 . 1 2 . Attach 17 | . 1 . 3 . . . 4 2 1 . 1 1 4 Detach 2 | . . . . . . . 1 1 . . . . . Swap 78 | . 9 1 9 1 2 2 15 18 5 1 6 2 7 Drop 69 | . 14 1 10 3 1 . 11 16 3 . 4 4 2 Fire 279 | 2 59 16 30 7 . 13 31 61 12 13 10 . 25 Melee 80 | . 4 . . . . . 12 23 4 . 4 21 12 Ram . | . . . . . . . . . . . . . . Kick . | . . . . . . . . . . . . . . Crush 10 | . . . . 2 . 1 3 2 2 . . . . Escape Stasis . | . . . . . . . . . . . . . . Rewire . | . . . . . . . . . . . . . . Trap . | . . . . . . . . . . . . . . Miscellaneous . | . . . . . . . . . . . . . . Route ------- -11/Scrapyard -10/Materials (discovered 4 exits: *Mat x3 / [*Min]) -10/Mines (discovered 2 exits: *Mat x2) -9/Materials (discovered 2 exits: *Mat / *Min) -9/Mines -9/Exiles -8/Mines -8/Materials -8/Storage -7/Factory -7/Lower Caves -7/Lower Caves -7/Zion (discovered 2 exits: *Dee / [*Pro]) -7/Deep Caves (discovered 1 exit: *Pro) History --------- Turn | Location | Event 23 | -11/Scrapyard | Discovered new exit (range 16) 71 | -11/Scrapyard | Entered Materials 139 | -10/Materials | Discovered new exit (range 8) 303 | -10/Materials | Build established: Mutant 401 | -10/Materials | Discovered new exit (range 12) 734 | -10/Materials | Discovered new exit (range 18) 924 | -10/Materials | Discovered new exit (range 16) 984 | -10/Materials | Entered Mines 987 | -10/Mines | Received a Mining Laser from a helpful Derelict 1028 | -10/Mines | Found a hidden stash of uninstalled traps 1043 | -10/Mines | Discovered new exit (range 11) 1059 | -10/Mines | Assisted by bots powering up and referring to "LRC-V3" 1073 | -10/Mines | Learned Materials stockpile data 1098 | -10/Mines | Discovered new exit (range 9) 1211 | -10/Mines | Learned Materials security intel 1564 | -10/Mines | Entered Materials 1564 | -9/Materials | Accompanied by 2 allies 1564 | -9/Materials | Evolved 2 slots: Propulsion x1, Utility x1 1800 | -9/Materials | Destroyed 7 combat bots 1951 | -9/Materials | Discovered new exit (range 6) 2124 | -9/Materials | Discovered new exit (range 18) 2197 | -9/Materials | Entered Mines 2226 | -9/Mines | Met a Derelict shopkeep closing up shop 2307 | -9/Mines | Learned location of Storage (-8) 2548 | -9/Mines | Deemed a non-threat by the Exiles lab entrance 2550 | -9/Mines | Discovered new exit (range 5) 2556 | -9/Mines | Entered Exiles 2593 | -9/Exiles | Met 8R-AWN 2622 | -9/Exiles | Met EX-HEX 2668 | -9/Exiles | Met EX-BIN 2692 | -9/Exiles | Aligned with FarCom system 2694 | -9/Exiles | Given EX-Vault access code 2737 | -9/Exiles | Opened EX-Vault 2752 | -9/Exiles | Found Cloak of Protection 2787 | -9/Exiles | Warned to stay clear of 0b10 Research branches 2832 | -9/Exiles | Met EX-DEC 2843 | -9/Exiles | Learned location of Zion (-7) 2902 | -9/Exiles | Discovered new exit (range 12) 2921 | -9/Exiles | Left Exiles lab with Cloak of Protection 2921 | -9/Exiles | Entered Mines 3605 | -8/Mines | Discovered new exit (range 7) 3614 | -8/Mines | Entered Materials 3614 | -8/Materials | Evolved 2 slots: Propulsion x1, Utility x1 4252 | -8/Materials | Identified exit to Storage 4294 | -8/Materials | Entered Storage 4382 | -8/Storage | Build established: Scavenger-Mutant 4957 | -8/Storage | Assisted by bots powering up and referring to "LRC-V3" 5167 | -8/Storage | Found Prototype Processor 5240 | -8/Storage | Build established: Commander-Mutant 5536 | -8/Storage | Allied Derelicts emerged from ambush trap array 5537 | -8/Storage | Discovered new exit (range 13) 5563 | -8/Storage | Identified exit to Factory 5565 | -8/Storage | Entered Factory 5565 | -7/Factory | Accompanied by 8 allies 5565 | -7/Factory | Evolved 2 slots: Utility x2 5947 | -7/Factory | Build established: Mutant 6120 | -7/Factory | Discovered new exit (range 9) 6133 | -7/Factory | Identified exit to Lower Caves 6137 | -7/Factory | Entered Lower Caves 6137 | -7/Lower Caves | Accompanied by 1 ally 6219 | -7/Lower Caves | Spotted B-75 Beast 6397 | -7/Lower Caves | Destroyed B-75 Beast 6429 | -7/Lower Caves | Identified exit to Lower Caves 6623 | -7/Lower Caves | Entered another Lower Caves area 6623 | -7/Lower Caves | Accompanied by 1 ally 6638 | -7/Lower Caves | Spotted B-75 Beast 6640 | -7/Lower Caves | Encountered a Warlord checkpoint 6725 | -7/Lower Caves | System corruption reached 10% 7014 | -7/Lower Caves | Attacked by a delusional Derelict stockpiling parts 7132 | -7/Lower Caves | Learned Factory stockpile data 7199 | -7/Lower Caves | Discovered new exit (range 13) 7221 | -7/Lower Caves | Identified exit to Zion 7223 | -7/Lower Caves | Entered Zion 7302 | -7/Zion | System corruption cleaned by Quarantine Array 7494 | -7/Zion | Discovered new exit (range 16) 7770 | -7/Zion | Found CR-A16's Pointy Stick 7828 | -7/Zion | Learned 4 Factory zone layouts 7872 | -7/Zion | Learned Factory emergency access door positions 8033 | -7/Zion | Given A8's code to call for help 8346 | -7/Zion | Given the Hacking Drone Bay 8347 | -7/Zion | Found Prototype Device 8590 | -7/Zion | Discovered new exit (range 4) 8593 | -7/Zion | Saw the warning signs outside the Deep Caves entrance 8594 | -7/Zion | Identified exit to Deep Caves 8599 | -7/Zion | Entered Deep Caves 8731 | -7/Deep Caves | Attacked by Z-Imprinter 8755 | -7/Deep Caves | Destroyed Z-Imprinter 8807 | -7/Deep Caves | Z-Facility disabled 9042 | -7/Deep Caves | Discovered new exit (range 7) 9050 | -7/Deep Caves | Identified exit to Proximity Caves 9136 | -7/Deep Caves | Spotted as-11236 9149 | -7/Deep Caves | Destroyed as-11236 9177 | -7/Deep Caves | Triggered Deep Caves wall 9179 | -7/Deep Caves | Spotted AS-35987 9183 | -7/Deep Caves | Exposed GOLEM chamber 9195 | -7/Deep Caves | Spotted AS-93268 9204 | -7/Deep Caves | Core integrity fell below 50% 9210 | -7/Deep Caves | Destroyed AS-35987 9225 | -7/Deep Caves | Core integrity fell below 20% 9231 | -7/Deep Caves | Destroyed 37 combat bots 9232 | -7/Deep Caves | Destroyed by as-01732 with Assembled P-sword Last Messages --------------- 09204_ as-44343 GOLEM Unit beginning Prototype Leg integration. 09205_ Penetrated by Slug. 09205_ Dropped Hcp. Storage Unit. 09206_ as-37219 destroyed. 09206_ as-15606 destroyed. 09206_ Destroyed Com. Matter Pod. 09207_ Penetrated by Slug. 09209_ as-01732 released from Mobile Assembly Unit. 09210_ as-56635 released from Mobile Assembly Unit. 09210_ AS-35987 destroyed. 09210_ as-89368 destroyed. 09210_ as-56635 destroyed. 09213_ Mni. Grenade Launcher severed. 09214_ Destroyed Com. Matter Pod. 09218_ Mni. Grenade Launcher destroyed. 09220_ as-20351 released from Mobile Assembly Unit. 09220_ Imp. Signal Interpreter severed. 09224_ Adv. Targeting Computer destroyed. 09224_ System corrupted by crushing effect (+3). 09230_ as-90950 released from Mobile Assembly Unit. Map ----- +----------------------------------------------------+ | | | ??????????????????????????????? | | ??????????????????????????????? | | ??????????????????????????????? | | ??????????????????????????????? | | ??????????????????????????????? | | ??????????????????????????????? | | ??????????????????????????????? | | ??????????????????????????????? | | ??????????????????????????????? | | ??????????????????????????????? | | ??????????????????????????????? | | ??????????????????????????????? | | ?????????? ?? ??????????????? | | ?????????? ????????????? | | ????????? ???????????? | | ?????????" ! ????????? | | ?????????" #??????? | | ?????????" ???????? | | ?????????" #???#???# | | ????????"" ! #?? #???# | | ??????### ! ### ##??# | | ??""""" ! # ??# | | ??" a b s ##??# | | ??" A #### | | ??" @ ?? | | ??" aa #??? | | ??" ##?? | | ??" = #?? | | ??" * ]/= ** #?? | | ??""""" []][ * #?? | | ??????### !=*!]** / #?? | | ????????"G *]! / #?? | | ????????"" [ #?# | | ?????????" * #?# | | ?????????" */ / ### | | ?????????" ! ## | | ????????# ! ## | | ????????" ## | | ????????" ! # | | ????????" | | ????????""" ! | | ????????? | | ?????????" ## | | ????????? ## | | ?????????? ## | | ??????????? # # ### | | ??????????? #### ## ## ##?# | | ???????????? ##???# ?# ####??# | | ???????????? ??????##?# ??????? | +----------------------------------------------------+ Best States ------------- Heat Dissipation 53 Energy Generation 14 Energy Capacity 480 Matter Stores 300 Matter Capacity 300 Sight Range 18 Terrain Scan Density 10 Cloak Strength 5 Armor Coverage 525 Resistance: TH 10 Evasion (%) 44 Targeting Accuracy 8 Recoil Reduction 4 Item Schematics ----------------- Force Booster | -7/Zion | Archive Plasma Rifle | -7/Zion | Archive Proton Missile Launcher | -7/Zion | Archive Beamcaster | -7/Zion | Archive Core Analyzer | -7/Zion | Archive Bore Cannon | -7/Zion | Archive Energy Filter | -7/Zion | Archive Imp. Coolant Injector | -7/Zion | Archive Imp. Shock Absorption System | -7/Zion | Archive Mak. Shrapnel Gun | -7/Zion | Archive Arm. Leg | -7/Zion | Archive Arc Projector | -7/Zion | Archive Hvy. Pick | -7/Zion | Archive Imp. Hacking Suite | -7/Zion | Archive Gatling Laser | -7/Zion | Archive Robot Schematics ------------------ S-27 Virus | -7/Zion | Archive K-01 Serf | -7/Zion | Archive L-41 Fighter | -7/Zion | Archive Fabricated ------------ Nothing Alien Tech Used ----------------- None Achievements -------------- None Challenges ------------ None Game ------ Seed HardlightCombatCannon Manual? 0 Play Time 02:01:12 Cumulative 150.1 hours Start 2022.09.07 @ 08:22:02 End 2022.09.07 @ 16:17:19 Sessions 3 Manual Loads 0 Difficulty Rogue Special Mode None Game No. 95 Rogue 76 Adventurer 16 Explorer 3 Win Type - Total 5 Types 4/0/1/0/0/0/0/0/0 Lore% 55 Gallery% 60 Achievement% 51 Wizard Run 0 Options --------- ASCII 1 Keyboard 1 Movement Vi Keybinds 0 Fullscreen 1 Font 28/Terminus Map View 67x55 Tactical HUD 1 Map Filters NONE Filters NONE Steam 1 RUN: 06cc7a87-38c8-4a4d-86fe-38f3b0eced70